Cogmind - Beta 9.6 @@@ ROGUE MODE // 2020.08.31 @ 22:04:53 // Winter2019/RPGLIKE Player: Hermelin Result: Destroyed by Y-72 Warden with Railgun Performance ------------- Evolutions (7) 3500 Regions Visited (29) 5800 Robots Destroyed (297) 1485 Value Destroyed (13283) 13283 Prototype IDs (122) 2440 Alien Tech Used (0) 0 Bonus (6108) 6108 TOTAL SCORE: 32616 Bonus ------- High Alert Combat Kills 973 Follower Combat Kills 2041 Network Hubs Disabled 800 Met Data Miner 300 Met Imprinter 300 Destroyed Z-Imprinter 1000 Met Warlord at Base 500 MAIN.C Attacked Warlord 500 Met R17 at Cetus 500 Friendly Fire -806 Cogmind --------- Core Integrity 0/1000 Matter 270/300 Energy 40/700 System Corruption 2% Temperature Cool (9) Movement Hovering (75) Ox1 Location -3/Armory Parts ------- > --- POWER (2) -------- Vortex Chain Reactor > --- PROPULSION (3) --- Cooled Antigrav System Antigrav Array > --- UTILITY (12) ----- Zionite Metafield Generator Experimental Signal Interpreter Experimental Terrain Scanner Surveybot 24 Chip Modified TNC Experimental Target Analyzer Improved Armor Integrity Analyzer Advanced Reaction Control System Experimental Phase Shifter Advanced Shield Generator Ghost Barrier System Restoration Module > --- WEAPON (5) ------- Vortex Catalyst Activator Nanosword Nanosword Force Lance > --- INVENTORY (7) ---- Cooled Antigrav System Advanced Actuator Array Advanced Powered Armor Medium Regenerative Plating Phasing AFG Molecular Deconstructor Peak State ------------ > --- POWER ------------ Vortex Chain Reactor > --- PROPULSION ------- Zionite Glidesys II Cooled Antigrav System Cooled Antigrav System > --- UTILITY ---------- Zionite Metafield Generator Experimental Signal Interpreter Experimental Terrain Scanner Surveybot 24 Chip Modified TNC Experimental Target Analyzer Improved Armor Integrity Analyzer Advanced Reaction Control System Medium Regenerative Plating Ghost Barrier System Restoration Module Phasing AFG > --- WEAPON ----------- Molecular Deconstructor Nanosword Nanosword Force Lance > --- INVENTORY -------- Advanced Actuator Array Experimental Phase Shifter Advanced Powered Armor Advanced Shield Generator Vortex Catalyst Activator [Rating: 186] Favorites ----------- Power Cooled Ion Engine Engine Cooled Ion Engine Power Core Light Nuclear Core Reactor Quantum Reactor Propulsion Combat Airjet Treads Light Treads Wheel Wheel Hover Unit Combat Airjet Flight Unit Improved VTOL Module Utility Modified TNC Device Improved Shield Generator Storage Experimental Energy Well Processor Modified TNC Hackware Hacking Suite Protection Zionite Heavy Carapace Weapon Makeshift Spear Energy Gun EM Pulse Gun Ballistic Gun Enhanced Coil Gun Launcher Vortex Catalyst Activator Special Weapon Molecular Deconstructor Impact Weapon Shock Maul Slashing Weapon Greatsword Piercing Weapon Makeshift Spear Special Melee Weapon Improved Datajack Build | -11 -10 -10 -10 -9 -8 -8 -7 -7 -7 -7 -6 -6 -6 -6 -6 -6 -5 -5 -5 -5 -5 -5 -4 -4 -4 -4 -3 -3 -3 ------- Run | Scr Mat Min Exi Min Mat Sto Fac Low Low Dat Pro Fac Low Low Zio Dee Pro Fac Ext Cet Arc Hub Fac Upp Upp War Pro Res Arm Slots Evolved 18 | 3 2 . . 1 1 2 4 . . . 1 1 . . . . 1 1 . . . . . . . . . 1 . Power 1 | . . . . . . 1 . . . . . . . . . . . . . . . . . . . . . . . Propulsion 2 | 1 . . . . . . 1 . . . . . . . . . . . . . . . . . . . . . . Utility 11 | 1 2 . . . 1 1 2 . . . 1 . . . . . 1 1 . . . . . . . . . 1 . Weapon 4 | 1 . . . 1 . . 1 . . . . 1 . . . . . . . . . . . . . . . . . Parts Attached 159 | 7 8 . 3 2 2 16 12 1 . 1 5 12 . . 3 15 1 7 2 5 . 5 6 4 . 21 1 7 13 Power 14 | 1 3 . . . . 4 . . . . . 4 . . . . . . . 1 . . . . . 1 . . . Engine 7 | 1 1 . . . . 3 . . . . . 2 . . . . . . . . . . . . . . . . . Core 4 | . 2 . . . . 1 . . . . . 1 . . . . . . . . . . . . . . . . . Reactor 3 | . . . . . . . . . . . . 1 . . . . . . . 1 . . . . . 1 . . . Propulsion 23 | 2 1 . . 1 . 5 3 . . . . 1 . . . 3 . . . 3 . . . . . 2 . . 2 Treads 2 | 1 . . . . . . . . . . . . . . . . . . . 1 . . . . . . . . . Leg . | . . . . . . . . . . . . . . . . . . . . . . . . . . . . . . Wheel 1 | 1 . . . . . . . . . . . . . . . . . . . . . . . . . . . . . Hover 17 | . 1 . . 1 . 2 3 . . . . 1 . . . 3 . . . 2 . . . . . 2 . . 2 Flight 3 | . . . . . . 3 . . . . . . . . . . . . . . . . . . . . . . . Utility 80 | 2 4 . 1 . 2 1 8 . . . 2 5 . . 2 11 1 5 2 1 . 2 3 4 . 9 . 5 10 Device 44 | 1 1 . . . 1 . 4 . . . 1 3 . . 1 5 1 4 . 1 . 1 3 1 . 4 . 5 7 Storage 1 | . . . . . . . . . . . . . . . . . . . . . . . . . . 1 . . . Processor 10 | 1 . . 1 . . 1 2 . . . . 1 . . . 2 . . 1 . . . . . . 1 . . . Hackware 5 | . 1 . . . . . 1 . . . 1 . . . . . . . . . . 1 . . . 1 . . . Protection 20 | . 2 . . . 1 . 1 . . . . 1 . . 1 4 . 1 1 . . . . 3 . 2 . . 3 Artifact . | . . . . . . . . . . . . . . . . . . . . . . . . . . . . . . Weapon 42 | 2 . . 2 1 . 6 1 1 . 1 3 2 . . 1 1 . 2 . . . 3 3 . . 9 1 2 1 Energy Gun 5 | 2 . . . . . . . . . . . . . . . . . . . . . . . . . 3 . . . Energy Cannon . | . . . . . . . . . . . . . . . . . . . . . . . . . . . . . . Ballistic Gun 1 | . . . . . . . . . . . . . . . . . . . . . . 1 . . . . . . . Ballistic Cannon . | . . . . . . . . . . . . . . . . . . . . . . . . . . . . . . Launcher 4 | . . . . . . 2 . . . . . . . . . . . . . . . . . . . 1 . . 1 Special Weapon 1 | . . . . . . . . . . . . . . . . . . . . . . . . . . . 1 . . Impact Weapon 2 | . . . . . . 2 . . . . . . . . . . . . . . . . . . . . . . . Slashing Weapon 18 | . . . 1 1 . 1 1 1 . . 2 2 . . . 1 . 2 . . . 1 . . . 3 . 2 . Piercing Weapon 8 | . . . 1 . . 1 . . . . . . . . . . . . . . . 1 3 . . 2 . . . Special Melee Weapon 3 | . . . . . . . . . . 1 1 . . . 1 . . . . . . . . . . . . . . Unidentified Prototypes 28 | . . . . . . 5 1 . . . . 4 . . 1 2 . . 1 1 . 1 . . . 9 1 2 . Parts Lost 3 | . . . . . . . . . . . . . . . . . . 1 . . . . . . . . . . 2 Power . | . . . . . . . . . . . . . . . . . . . . . . . . . . . . . . Propulsion 1 | . . . . . . . . . . . . . . . . . . . . . . . . . . . . . 1 Utility 2 | . . . . . . . . . . . . . . . . . . 1 . . . . . . . . . . 1 Weapon . | . . . . . . . . . . . . . . . . . . . . . . . . . . . . . . Highest Loss Streak 1 | . . . . . . . . . . . . . . . . . . 1 . . . . . . . . . . 1 Average Slot Usage (%) 94 | . 99 100 98 100 99 99 98 95 94 94 94 93 94 94 94 92 95 92 90 89 90 90 89 90 90 88 85 85 88 Engine 6 | . 8 . . . . 6 12 11 11 11 11 10 10 10 10 10 10 9 9 5 4 4 4 4 4 1 . . . Core 2 | . 4 11 11 10 9 6 . . . . . . . . . . . . . . . . . . . . . . . Treads 2 | . 12 11 11 6 . . . . . . . . . . . . . . . . . . . . . . . . . Hover 13 | . 6 11 11 15 18 13 15 17 17 17 16 15 15 15 15 15 15 14 14 13 14 14 14 14 14 14 14 13 12 Device 15 | . 13 22 18 10 17 15 12 11 11 11 13 16 15 15 15 14 20 19 18 17 19 14 14 14 14 15 14 16 21 Processor 15 | . . . 2 10 9 13 14 17 17 17 16 15 15 15 15 24 25 24 23 23 23 23 23 23 23 23 23 22 22 Hackware 7 | . 7 11 11 10 9 7 12 11 11 11 11 10 10 10 10 . . . . . . 3 4 4 4 4 4 4 4 Protection 6 | . 12 11 11 10 9 7 5 5 5 5 5 4 5 5 5 5 5 3 4 5 4 4 4 4 4 4 4 4 3 Energy Gun 3 | . 25 22 9 . . . . . . . . . . . . . . . . . . . . . . . . . . Slashing Weapon 9 | . . . 6 13 18 13 8 11 11 9 10 13 15 15 11 13 15 14 14 14 14 12 9 9 9 8 8 6 9 Piercing Weapon 5 | . . . 6 10 9 7 6 5 5 5 5 5 5 5 5 5 5 4 4 4 4 5 8 9 9 8 9 6 4 Naked Turns . | . . . . . . . . . . . . . . . . . . . . . . . . . . . . . . Heaviest Build 88 | 10 14 14 14 15 17 29 33 33 33 33 35 43 43 43 43 57 44 47 53 65 60 60 61 61 61 76 69 71 88 Greatest Support 83 | 20 25 25 25 33 33 35 51 51 51 51 51 55 55 55 55 70 70 70 70 70 70 70 70 70 70 73 73 73 83 Greatest Overweight (x) 2 | . 1 . . . . 2 1 . . . . . . . . . . . . 1 . . . . . 1 . . 1 Average Overweight (x) . | . . . . . . . . . . . . . . . . . . . . . . . . . . . . . . Largest Inventory Capacity 7 | 2 3 3 3 3 4 4 4 5 5 5 5 5 5 5 5 5 5 5 5 5 5 6 6 6 6 7 7 7 7 Average Capacity 4 | 2 2 3 3 3 3 4 4 4 5 5 5 5 5 5 5 5 5 5 5 5 5 5 6 6 6 6 7 7 7 Most Carried 7 | 2 3 3 3 3 4 4 4 5 5 5 5 5 5 5 5 5 5 5 5 5 5 6 6 6 6 7 7 7 7 Average Carried 4 | 1 2 2 2 2 3 3 3 4 4 5 4 4 4 5 4 4 4 4 4 4 5 5 5 5 6 6 7 6 5 Final Capacity 7 | 2 3 3 3 3 4 4 4 5 5 5 5 5 5 5 5 5 5 5 5 5 5 6 6 6 6 7 7 7 7 Final Carried 7 | 2 3 3 3 3 4 4 4 5 5 5 5 5 5 5 5 5 5 5 5 5 5 6 6 6 6 7 7 7 7 Class Distribution -------------------- 76% | Hacker-Scout 14% | Hacker-Mutant 3% | Mutant Dominant Class ---------------- Hacker-Mutant | -10/Materials Hacker-Mutant | -10/Mines Hacker-Mutant | -10/Exiles Hacker-Scout | -9/Mines Hacker-Scout | -8/Materials Hacker-Scout | -8/Storage Hacker-Scout | -7/Factory Hacker-Scout | -7/Lower Caves Hacker-Scout | -7/Lower Caves Hacker-Scout | -7/Data Miner Hacker-Scout | -6/Proximity Caves Hacker-Scout | -6/Factory Hacker-Scout | -6/Lower Caves Hacker-Scout | -6/Lower Caves Hacker-Scout | -6/Zion Hacker-Scout | -6/Deep Caves Hacker-Scout | -5/Proximity Caves Hacker-Scout | -5/Factory Hacker-Scout | -5/Extension Hacker-Scout | -5/Cetus Hacker-Scout | -5/Archives Hacker-Scout | -5/Hub_04(d) Hacker-Scout | -4/Factory Hacker-Scout | -4/Upper Caves Hacker-Scout | -4/Upper Caves Hacker-Scout | -4/Warlord Hacker-Scout | -3/Proximity Caves Hacker-Scout | -3/Research Hacker-Scout | -3/Armory Resources | -11 -10 -10 -10 -9 -8 -8 -7 -7 -7 -7 -6 -6 -6 -6 -6 -6 -5 -5 -5 -5 -5 -5 -4 -4 -4 -4 -3 -3 -3 ----------- Run | Scr Mat Min Exi Min Mat Sto Fac Low Low Dat Pro Fac Low Low Zio Dee Pro Fac Ext Cet Arc Hub Fac Upp Upp War Pro Res Arm Matter Collected 1768 | 270 80 . 30 20 20 160 120 10 . . 60 120 . . . 180 10 70 20 50 . 50 60 40 . 117 93 80 108 Remotely . | . . . . . . . . . . . . . . . . . . . . . . . . . . . . . . Salvage Created 14399 | 118 795 62 209 189 465 1012 724 216 241 . 469 955 248 271 . 424 419 440 847 258 595 1187 1272 232 114 . 89 1213 1335 Parts 726 | 11 52 4 8 1 28 53 47 12 22 . 23 58 13 6 . 25 10 39 17 17 26 49 51 8 5 . 6 58 77 Haulers Intercepted 7 | . 1 . . . . 1 . . . . . 2 . . . . . . . . . 2 1 . . . . . . Recyclers Shooed . | . . . . . . . . . . . . . . . . . . . . . . . . . . . . . . Parts Field Recycled . | . . . . . . . . . . . . . . . . . . . . . . . . . . . . . . Retrieved Matter . | . . . . . . . . . . . . . . . . . . . . . . . . . . . . . . Parts Self-Destructed 147 | . . . . . . . . 13 20 . 39 . 7 6 . . 12 . . . . . . 7 5 32 6 . . Prevented 3 | . . . . . . . . . . . . . . . . . . . . . . . . . . 3 . . . Kills | -11 -10 -10 -10 -9 -8 -8 -7 -7 -7 -7 -6 -6 -6 -6 -6 -6 -5 -5 -5 -5 -5 -5 -4 -4 -4 -4 -3 -3 -3 ------- Run | Scr Mat Min Exi Min Mat Sto Fac Low Low Dat Pro Fac Low Low Zio Dee Pro Fac Ext Cet Arc Hub Fac Upp Upp War Pro Res Arm Combat Hostiles Destroyed 220 | . 23 . . 5 12 18 19 9 7 . 7 13 1 3 . 5 4 9 6 5 3 12 13 4 1 . 2 11 28 Melee 186 | . . . . 5 12 18 17 9 7 . 7 13 1 3 . 5 4 9 6 5 3 12 13 4 1 . 2 11 19 Guns 23 | . 23 . . . . . . . . . . . . . . . . . . . . . . . . . . . . AOE 11 | . . . . . . . 2 . . . . . . . . . . . . . . . . . . . . . 9 Classes Destroyed 21 | 2 6 . . 1 1 1 2 . 1 . 1 . 1 . . 1 . . . . . 1 . . . . . . 3 Worker 6 | . 1 . . . . 1 2 . . . . . . . . . . 1 . . . 1 . . . . . . . Builder 1 | . . . . . . . . . . . . . . . . . . . . . . 1 . . . . . . . Tunneler 2 | 2 . . . . . . . . . . . . . . . . . . . . . . . . . . . . . Hauler 7 | . 1 . . . . 1 . . . . . 2 . . . . . . . . . 2 1 . . . . . . Recycler 11 | 1 . 1 . . . . 1 . . . . . . . . . . 1 3 . . 1 3 . . . . . . Minesweeper 1 | . . . . . . . . . . . . . 1 . . . . . . . . . . . . . . . . Operator 16 | . 1 . . . . 1 2 . . . . 1 . . . . . 1 1 . 7 2 . . . . . . . Watcher 32 | . 2 . . . 1 1 1 . . . . 2 . . . . . 4 . 1 . 3 8 . . . . 6 3 Swarmer 35 | . 3 . . . 4 4 . 6 . . . 4 . . . . 3 . . 1 . . 6 1 . . . . 3 Saboteur 1 | . . . . . . . . . . . . . . . . . . . . . . . . . . . . . 1 Grunt 71 | . 20 . . . 4 2 12 2 5 . 2 2 . 3 . . . 7 1 . . 2 2 1 . . . . 6 Brawler 2 | . . . . . . . . . . . 2 . . . . . . . . . . . . . . . . . . Duelist 5 | . . . . . . . 1 1 . . . . . . . . . . . . . . . . . . . . 3 Protector 1 | . . . . . . . . . . . . . . . . . . . . . . . . . . . . . 1 Sentry 54 | . . . . . 4 10 3 . . . 1 4 1 . . . 1 2 4 . 3 6 4 1 1 . . 5 4 Specialist 4 | . . . . . . . . . . . . . . . . . . . . . . . . . . . . . 4 Hunter 11 | . . . . . . 2 2 . . . 1 . . . . . . . . . . 3 . . . . 2 1 . Programmer 18 | . . . . . . . 1 . 1 . 1 3 . . . . . . . . . 1 1 . . . . 4 6 Behemoth 4 | . . . . . . . . . 1 . . . . . . . . . 1 . . . . 1 . . . 1 . Cetus Guard 4 | . . . . . . . . . . . . . . . . . . . . 4 . . . . . . . . . Z-Light 4 | . . . . . . . . . . . . . . . . 4 . . . . . . . . . . . . . Assembled 5 | . . . . 5 . . . . . . . . . . . . . . . . . . . . . . . . . Best Kill Streak 12 | 3 5 1 . 1 5 4 7 4 3 . 2 4 1 3 . 3 3 7 3 3 10 6 7 4 1 . 2 6 12 Combat Bots Only 11 | . 4 . . 1 5 4 5 4 3 . 2 3 1 3 . 3 3 7 1 3 3 4 4 4 1 . 2 5 11 Max Kills in Single Turn 5 | 1 1 1 . 1 1 1 4 1 1 . 1 1 1 1 . 1 1 1 1 2 1 1 1 1 1 . 1 1 5 Gunslinging . | . . . . . . . . . . . . . . . . . . . . . . . . . . . . . . Exploded 4 | . . . . . . . 2 . . . . . . . . . . . . . . . . . . . . . 4 Melee 2 | . . . . 1 1 1 1 1 1 . 1 1 1 1 . 1 1 1 1 2 1 1 1 1 1 . 1 1 1 Uniques/NPCs Destroyed 2 | . . . . . . . . . . . . . . . . 1 . . . 1 . . . . . . . . . Z-Imprinter (-6/Deep Caves) Revision 17 (-5/Cetus) Combat | -11 -10 -10 -10 -9 -8 -8 -7 -7 -7 -7 -6 -6 -6 -6 -6 -6 -5 -5 -5 -5 -5 -5 -4 -4 -4 -4 -3 -3 -3 -------- Run | Scr Mat Min Exi Min Mat Sto Fac Low Low Dat Pro Fac Low Low Zio Dee Pro Fac Ext Cet Arc Hub Fac Upp Upp War Pro Res Arm Damage Taken 10081 | . 833 . . 196 285 492 579 261 567 . 462 720 40 210 . 717 141 195 204 188 59 472 489 361 17 . 75 237 2281 Core 6782 | . 598 . . 117 195 339 392 195 420 . 337 495 23 171 . 529 71 148 153 95 29 256 231 205 6 . 44 114 1619 Absorbed by Shields 3062 | . . . . . 109 190 227 99 204 . 172 270 17 77 . 195 50 71 72 27 21 174 184 130 6 . 28 84 655 Redirected to Core 5549 | . 459 . . 117 138 251 314 144 358 . 282 377 20 85 . 480 71 105 135 95 29 225 231 205 6 . 26 114 1282 Core Remaining (%) 93 | 100 . . . 99 . 100 . . . . 94 . . . . . 64 . . . . 96 . . . . 100 . . Volleys Fired 82 | 6 72 1 . . . . . . . . . . . . . . . . . . . . . . . . . . 3 Largest 2 | 2 2 2 . . . . . . . . . . . . . . . . . . . . . . . . . . 1 Hottest 80 | 80 80 80 . . . . . . . . . . . . . . . . . . . . . . . . . . 20 Shots Fired 161 | 12 144 2 . . . . . . . . . . . . . . . . . . . . . . . . . . 3 Gun 158 | 12 144 2 . . . . . . . . . . . . . . . . . . . . . . . . . . . Cannon . | . . . . . . . . . . . . . . . . . . . . . . . . . . . . . . Launcher 3 | . . . . . . . . . . . . . . . . . . . . . . . . . . . . . 3 Special . | . . . . . . . . . . . . . . . . . . . . . . . . . . . . . . Kinetic . | . . . . . . . . . . . . . . . . . . . . . . . . . . . . . . Thermal . | . . . . . . . . . . . . . . . . . . . . . . . . . . . . . . Explosive . | . . . . . . . . . . . . . . . . . . . . . . . . . . . . . . Electromagnetic 158 | 12 144 2 . . . . . . . . . . . . . . . . . . . . . . . . . . . Entropic 3 | . . . . . . . . . . . . . . . . . . . . . . . . . . . . . 3 Robot Hit Streak 11 | 1 11 2 . . . . . . . . . . . . . . . . . . . . . . . . . . 1 Robot Miss Streak 4 | 2 4 . . . . . . . . . . . . . . . . . . . . . . . . . . . 1 Penetration Max . | . . . . . . . . . . . . . . . . . . . . . . . . . . . . . . Secondary Targets 1 | . 1 . . . . . . . . . . . . . . . . . . . . . . . . . . . . Max Gunslinging Chain 1 | . 1 . . . . . . . . . . . . . . . . . . . . . . . . . . . . Shots Hit Robots 813 | 4 96 1 7 10 38 57 60 19 24 1 43 49 8 17 2 27 14 39 24 14 16 62 48 15 1 . 8 40 69 Core Hits 409 | 3 38 1 3 7 14 24 27 12 12 . 20 25 7 7 . 13 6 19 9 10 11 27 30 7 1 . 3 23 50 Critical Hits 48 | . . . . . 1 2 2 1 . . . . 2 1 . . 3 . 1 . . 5 1 . 1 . 2 10 16 Critical Kills 23 | . . . . . . . 1 1 . . . . 2 . . . 1 . . . . 2 1 . 1 . 1 6 7 Critical Parts Destroyed 21 | . . . . . 1 1 1 . . . . . . 1 . . 2 . 1 . . 3 . . . . 1 2 8 Melee Attacks 1066 | . . . 7 17 49 84 73 27 25 1 47 83 12 24 37 55 25 70 28 20 22 73 77 24 2 . 14 71 99 Impact 11 | . . . . . . . 8 3 . . . . . . . . . . . . . . . . . . . . . Slashing 507 | . . . 5 13 38 39 18 7 4 . 13 26 5 8 26 26 14 53 27 13 16 59 32 12 . . 3 18 32 Piercing 542 | . . . 2 4 11 45 47 17 21 . 33 57 7 16 9 27 11 17 1 7 6 14 45 12 2 . 11 53 67 Sneak Attacks 71 | . . . . . . 3 7 . . 1 3 3 1 . 2 . . 6 6 1 10 10 9 . . . 2 4 3 Combat Hostiles 18 | . . . . . . . 1 . . . . . . . . . . 2 2 . 2 4 1 . . . 2 1 3 Follow-up Attacks 205 | . . . 2 3 13 13 16 7 4 . 11 12 1 6 . 9 3 14 7 5 5 28 11 5 . . 4 9 17 Damage Inflicted 45136 | 58 1414 18 722 609 1308 2092 3229 684 806 . 1798 1890 588 700 . 1034 1217 2660 2192 839 2386 4609 3275 763 46 . 455 2609 7135 Guns 1449 | 58 1376 15 . . . . . . . . . . . . . . . . . . . . . . . . . . . Cannons . | . . . . . . . . . . . . . . . . . . . . . . . . . . . . . . Explosions 4189 | . 38 . . . . . 932 . . . . . . . . . . . . . . . . . . . . . 3219 Melee 39417 | . . . 722 609 1308 2092 2297 684 806 . 1798 1890 588 700 . 1034 1217 2660 2120 839 2386 4609 3275 763 46 . 455 2609 3910 Ramming 81 | . . 3 . . . . . . . . . . . . . . . . 72 . . . . . . . . . 6 Kinetic . | . . . . . . . . . . . . . . . . . . . . . . . . . . . . . . Thermal 970 | . 38 . . . . . 932 . . . . . . . . . . . . . . . . . . . . . . Explosive . | . . . . . . . . . . . . . . . . . . . . . . . . . . . . . . Electromagnetic 1449 | 58 1376 15 . . . . . . . . . . . . . . . . . . . . . . . . . . . Impact 314 | . . . . . . . 180 134 . . . . . . . . . . . . . . . . . . . . . Slashing 22266 | . . . 551 576 1070 1034 474 149 176 . 474 522 36 277 . 673 1064 2385 2120 651 2232 4149 1431 547 . . 88 459 1128 Piercing 16837 | . . . 171 33 238 1058 1643 401 630 . 1324 1368 552 423 . 361 153 275 . 188 154 460 1844 216 46 . 367 2150 2782 Entropic 3219 | . . . . . . . . . . . . . . . . . . . . . . . . . . . . . 3219 Highest Corruption 5 | . . . . . . . . . . . . 2 . . . . . . . . . 1 1 1 . . . . 5 Average Corruption 1 | . . . . . . . . . . . . 1 . . . . . . . . . 1 1 1 . . . . 1 Corruption Purged 6 | . . . . . . . . . . . . 2 . . . . . . . . . . . 1 . . . . 3 Effects 4 | . . . . . . . . . . . . . . . . . . . . . . . 1 . . . . . 3 Message Errors 2 | . . . . . . . . . . . . . . . . . . . . . . . 1 . . . . . 1 Matter Fused 1 | . . . . . . . . . . . . . . . . . . . . . . . . . . . . . 1 Data Loss (minor) 1 | . . . . . . . . . . . . . . . . . . . . . . . . . . . . . 1 Overload Shots . | . . . . . . . . . . . . . . . . . . . . . . . . . . . . . . Overflow Damage 4600 | . . . 183 46 30 231 532 13 . . 12 21 9 51 . 68 388 209 430 47 589 867 486 21 . . . 176 191 Projectiles . | . . . . . . . . . . . . . . . . . . . . . . . . . . . . . . Explosions 433 | . . . . . . . 279 . . . . . . . . . . . . . . . . . . . . . 154 Melee 4167 | . . . 183 46 30 231 253 13 . . 12 21 9 51 . 68 388 209 430 47 589 867 486 21 . . . 176 37 Knockbacks 2 | . . . . . . . 1 1 . . . . . . . . . . . . . . . . . . . . . Impact 2 | . . . . . . . 1 1 . . . . . . . . . . . . . . . . . . . . . Kinetic . | . . . . . . . . . . . . . . . . . . . . . . . . . . . . . . Secondary . | . . . . . . . . . . . . . . . . . . . . . . . . . . . . . . Self-Inflicted Damage 166 | . 26 . . . . . . . . . . . . . . . . . 36 . . . . . . . . . 104 Shots 2 | . 1 . . . . . . . . . . . . . . . . . . . . . . . . . . . 1 Rammed 3 | . . 1 . . . . . . . . . . . . . . . . 1 . . . . . . . . . 1 Targets Rammed 3 | . . 1 . . . . . . . . . . . . . . . . 1 . . . . . . . . . 1 Kicked . | . . . . . . . . . . . . . . . . . . . . . . . . . . . . . . Crushed . | . . . . . . . . . . . . . . . . . . . . . . . . . . . . . . Highest Temperature 239 | 54 239 . . . . 1 . . . . . 18 . . . 11 . . . . . . . . . . . . . Average Temperature 55 | 23 58 . . . . 1 . . . . . 18 . . . 7 . . . . . . . . . . . . . Received Heat Transfer 1899 | . 408 . . . 66 66 176 12 120 . 164 115 12 78 . 198 . 66 18 21 6 54 74 39 6 . . 30 170 Effects 1 | . 1 . . . . . . . . . . . . . . . . . . . . . . . . . . . . Energy Bleed 1 | . 1 . . . . . . . . . . . . . . . . . . . . . . . . . . . . Siege Activations . | . . . . . . . . . . . . . . . . . . . . . . . . . . . . . . Robots Corrupted . | . . . . . . . . . . . . . . . . . . . . . . . . . . . . . . Combat Hostiles . | . . . . . . . . . . . . . . . . . . . . . . . . . . . . . . Parts Fried 10 | . 8 . . . . . . . . . . . . . . . . . 2 . . . . . . . . . . Impact Corruptions 1 | . . . . . . . . . . . . . . . . . . . 1 . . . . . . . . . . Robots Melted . | . . . . . . . . . . . . . . . . . . . . . . . . . . . . . . Combat Hostiles . | . . . . . . . . . . . . . . . . . . . . . . . . . . . . . . Parts Melted . | . . . . . . . . . . . . . . . . . . . . . . . . . . . . . . Heat Transferred 650 | . 50 . . . . . 600 . . . . . . . . . . . . . . . . . . . . . . Parts Sabotaged 2 | . . . . . . . . . . . . . . . . . . . . . . . . . . . . . 2 Parts Stolen . | . . . . . . . . . . . . . . . . . . . . . . . . . . . . . . Parts Stripped . | . . . . . . . . . . . . . . . . . . . . . . . . . . . . . . Power Chain Reactions 1 | . 1 . . . . . . . . . . . . . . . . . . . . . . . . . . . . Missiles Intercepted . | . . . . . . . . . . . . . . . . . . . . . . . . . . . . . . Alert | -11 -10 -10 -10 -9 -8 -8 -7 -7 -7 -7 -6 -6 -6 -6 -6 -6 -5 -5 -5 -5 -5 -5 -4 -4 -4 -4 -3 -3 -3 ------- Run | Scr Mat Min Exi Min Mat Sto Fac Low Low Dat Pro Fac Low Low Zio Dee Pro Fac Ext Cet Arc Hub Fac Upp Upp War Pro Res Arm Peak Influence 858 | 15 475 169 . 106 475 588 858 . . . . 506 . . . . . 382 652 402 351 397 500 . . . . 529 770 Average Influence 250 | 5 264 78 . 53 229 333 361 . . . . 370 . . . . . 147 394 239 301 217 323 . . . . 200 184 Maximum Alert Level 3 | . 2 . . . 2 2 3 . . . . 2 . . . . . 1 2 2 1 1 2 . . . . 2 3 Low Security (%) 43 | 100 33 100 . 100 37 27 32 . . . . 4 . . . . . 65 11 53 13 37 19 . . . . 56 58 Level 1 35 | . 55 . . . 53 27 25 . . . . 51 . . . . . 34 29 21 86 62 60 . . . . 26 38 Level 2 20 | . 11 . . . 8 44 30 . . . . 44 . . . . . . 59 25 . . 20 . . . . 16 2 Level 3 1 | . . . . . . . 11 . . . . . . . . . . . . . . . . . . . . . . Level 4 . | . . . . . . . . . . . . . . . . . . . . . . . . . . . . . . Level 5 . | . . . . . . . . . . . . . . . . . . . . . . . . . . . . . . High Security . | . . . . . . . . . . . . . . . . . . . . . . . . . . . . . . Max Security . | . . . . . . . . . . . . . . . . . . . . . . . . . . . . . . Squads Dispatched 51 | . 4 . . . 2 3 13 . . . . 6 . . . . . 4 6 . . 6 . . . . . 4 3 Investigation 30 | . 4 . . . 2 2 7 . . . . 2 . . . . . 3 4 . . 5 . . . . . 1 . Extermination 5 | . . . . . . . 1 . . . . 2 . . . . . . . . . . . . . . . 1 1 Reinforcement 14 | . . . . . . 1 3 . . . . 2 . . . . . 1 2 . . 1 . . . . . 2 2 Assault . | . . . . . . . . . . . . . . . . . . . . . . . . . . . . . . Garrison 2 | . . . . . . . 2 . . . . . . . . . . . . . . . . . . . . . . Intercept . | . . . . . . . . . . . . . . . . . . . . . . . . . . . . . . Construction Impeded . | . . . . . . . . . . . . . . . . . . . . . . . . . . . . . . Haulers Reinforced 2 | . . . . . . . . . . . . 1 . . . . . . . . . 1 . . . . . . . Stealth | -11 -10 -10 -10 -9 -8 -8 -7 -7 -7 -7 -6 -6 -6 -6 -6 -6 -5 -5 -5 -5 -5 -5 -4 -4 -4 -4 -3 -3 -3 --------- Run | Scr Mat Min Exi Min Mat Sto Fac Low Low Dat Pro Fac Low Low Zio Dee Pro Fac Ext Cet Arc Hub Fac Upp Upp War Pro Res Arm Distress Signals 25 | . 4 . . . . 4 . . . . . 3 . . . . . 1 4 2 . 2 . . . 1 . 2 2 Communications Jammed . | . . . . . . . . . . . . . . . . . . . . . . . . . . . . . . Distress Signals . | . . . . . . . . . . . . . . . . . . . . . . . . . . . . . . Times Spotted 409 | . 39 3 . 18 23 29 33 10 7 . 14 23 1 3 . 8 6 16 26 10 4 29 26 4 1 8 1 22 45 Peak Tracking Total 19 | . 7 3 . 4 6 3 6 4 3 . 4 7 1 3 . 3 5 4 5 5 2 18 6 4 1 6 1 3 19 Tactical Retreats 27 | . 4 . . 1 3 2 . 1 . . . 2 . . . 1 1 1 5 . . 1 2 . . . . . 3 Traps | -11 -10 -10 -10 -9 -8 -8 -7 -7 -7 -7 -6 -6 -6 -6 -6 -6 -5 -5 -5 -5 -5 -5 -4 -4 -4 -4 -3 -3 -3 ------- Run | Scr Mat Min Exi Min Mat Sto Fac Low Low Dat Pro Fac Low Low Zio Dee Pro Fac Ext Cet Arc Hub Fac Upp Upp War Pro Res Arm Traps Triggered 10 | . 1 . . . . . . . . . . 5 . . . . . . 1 . . . 2 . . . . 1 . Indirectly . | . . . . . . . . . . . . . . . . . . . . . . . . . . . . . . Trap Hack Attempts . | . . . . . . . . . . . . . . . . . . . . . . . . . . . . . . Triggered . | . . . . . . . . . . . . . . . . . . . . . . . . . . . . . . Disarmed 14 | . 6 . . . . . . . . . . . . . . . . . . . . . . . . . . 8 . Reprogrammed 12 | . . . . . . . 6 . . . . . . . . . . 6 . . . . . . . . . . . Reused 2 | . . . . . . . 1 . . . . . . . . . . 1 . . . . . . . . . . . Traps Extracted . | . . . . . . . . . . . . . . . . . . . . . . . . . . . . . . Installed . | . . . . . . . . . . . . . . . . . . . . . . . . . . . . . . Triggered 16 | . 2 . . . . . 1 . . . . . . . . . . 1 . . . . . . . 12 . . . Machines | -11 -10 -10 -10 -9 -8 -8 -7 -7 -7 -7 -6 -6 -6 -6 -6 -6 -5 -5 -5 -5 -5 -5 -4 -4 -4 -4 -3 -3 -3 ---------- Run | Scr Mat Min Exi Min Mat Sto Fac Low Low Dat Pro Fac Low Low Zio Dee Pro Fac Ext Cet Arc Hub Fac Upp Upp War Pro Res Arm Machines Disabled 19 | . 2 . . . . 2 3 . . . . 4 . . 3 . . . . 1 . . . . . . 1 . 3 Max in Single Turn 3 | . 1 . . . . 1 3 . . . . . . . 1 . . . . 1 . . . . . . 1 . 1 Garrison Access 8 | . . . . . . . 1 . . . . 1 . . . . . 2 . . . 1 1 . . . . 2 . Network Hub 4 | . . . . . . . . . . . . . . . . . . . . . . 4 . . . . . . . Machines Sabotaged 3 | . . . . . . . . . . . . . . . . . . . . . . 3 . . . . . . . Garrisons Compromised . | . . . . . . . . . . . . . . . . . . . . . . . . . . . . . . Overloaded Fab Kills . | . . . . . . . . . . . . . . . . . . . . . . . . . . . . . . Fab Network Shutdowns . | . . . . . . . . . . . . . . . . . . . . . . . . . . . . . . Hacking | -11 -10 -10 -10 -9 -8 -8 -7 -7 -7 -7 -6 -6 -6 -6 -6 -6 -5 -5 -5 -5 -5 -5 -4 -4 -4 -4 -3 -3 -3 --------- Run | Scr Mat Min Exi Min Mat Sto Fac Low Low Dat Pro Fac Low Low Zio Dee Pro Fac Ext Cet Arc Hub Fac Upp Upp War Pro Res Arm Machines Accessed 146 | . 10 . 5 . 3 15 17 . . 4 . 11 . 1 . . . 15 13 5 1 10 10 . . 3 . 18 5 Terminals 93 | . 8 . . . 2 14 7 . . . . 7 . . . . . 7 12 5 . 9 5 . . . . 13 4 Fabricators 7 | . . . . . . . 1 . . . . . . . . . . 2 . . . . 2 . . . . 1 1 Repair Stations 6 | . 1 . . . . . 2 . . . . 2 . . . . . 1 . . . . . . . . . . . Recycling Units 9 | . 1 . . . 1 1 3 . . . . . . . . . . 2 1 . . . . . . . . . . Scanalyzers 9 | . . . . . . . 3 . . . . 1 . . . . . 1 . . . . 2 . . . . 2 . Garrison Access 8 | . . . . . . . 1 . . . . 1 . . . . . 2 . . . 1 1 . . . . 2 . Total Hacks 804 | . 46 . 49 . 11 66 60 . . 29 . 42 . 1 . . . 52 82 20 25 47 57 . . 4 . 153 60 Successful 557 | . 26 . 49 . 7 51 45 . . 29 . 31 . 1 . . . 39 51 15 25 40 36 . . 4 . 82 26 Failed 242 | . 19 . . . 4 14 14 . . . . 10 . . . . . 13 31 5 . 7 21 . . . . 70 34 Catastrophic 30 | . 1 . . . . . 3 . . . . 1 . . . . . 2 3 . . 1 2 . . . . 6 11 Database Lockouts 10 | . 1 . . . . 1 3 . . . . 2 . . . . . . . . . . . . . . . 3 . Manual 401 | . 29 . 1 . 6 46 22 . . 1 . 15 . . . . . 25 79 11 . 32 20 . . 1 1 72 40 Terminals 573 | . 39 . . . 8 62 29 . . . . 31 . . . . . 29 79 20 . 46 42 . . . . 131 57 Fabricators 27 | . . . . . . . 5 . . . . . . . . . . 9 . . . . 6 . . . . 4 3 Repair Stations 16 | . 3 . . . . . 4 . . . . 5 . . . . . 4 . . . . . . . . . . . Recycling Units 26 | . 4 . . . 3 4 8 . . . . . . . . . . 4 3 . . . . . . . . . . Scanalyzers 39 | . . . . . . . 12 . . . . 5 . . . . . 3 . . . . 8 . . . . 11 . Garrison Access 15 | . . . . . . . 2 . . . . 1 . . . . . 3 . . . 1 1 . . . . 7 . Terminal Hacks 330 | . 16 . 49 . 2 26 15 . . 29 . 17 . 1 . . . 13 34 6 25 18 16 . . 4 . 46 13 Record 94 | . . . 48 . . . . . . 11 . . . 1 . . . . . 5 25 . 1 . . 2 . 1 . Part Schematic 51 | . . . . . . . 2 . . 9 . 4 . . . . . 4 12 . . 5 3 . . . . 8 4 Robot Schematic 11 | . 1 . . . . . . . . 6 . 2 . . . . . . . . . . . . . . . 2 . Robot Analysis 30 | . 4 . . . . 3 2 . . . . . . . . . . 3 9 . . 1 1 . . . . 6 1 Prototype ID Bank 24 | . 3 . . . . 2 1 . . 3 . 3 . . . . . 1 1 . . 2 3 . . . . 4 1 Open Door 8 | . . . . . . 4 . . . . . . . . . . . . . 1 . . . . . 2 . . 1 Level Access Points 1 | . . . . . . . . . . . . . . . . . . . . . . . . . . . . 1 . Branch Access Points 6 | . 1 . . . 1 1 1 . . . . . . . . . . 1 . . . . . . . . . 1 . Emergency Access Points 2 | . . . . . . . . . . . . . . . . . . . . . . 1 . . . . . . 1 Machine Index 2 | . . . . . . 1 . . . . . . . . . . . . . . . . . . . . . 1 . Terminal Index 13 | . 1 . . . 1 2 1 . . . . 1 . . . . . 1 1 . . 1 2 . . . . 1 1 Fabricator Index 3 | . . . . . . . . . . . . . . . . . . . . . . 1 1 . . . . . 1 Repair Station Index 1 | . . . . . . . . . . . . 1 . . . . . . . . . . . . . . . . . Recycling Unit Index 3 | . . . . . . 1 . . . . . . . . . . . . 1 . . . . . . . . . 1 Scanalyzer Index 2 | . . . . . . . . . . . . . . . . . . . . . . . 1 . . . . . 1 Garrison Index 6 | . . . . . . . 1 . . . . . . . . . . 1 . . . 1 1 . . . . 1 1 Alert Level 8 | . . . . . . 1 . . . . . . . . . . . . 2 . . 1 1 . . . . 3 . Unreport Threat 17 | . . . . . . 3 . . . . . . . . . . . . 6 . . 2 1 . . . . 5 . Locate Traps 14 | . 2 . . . . . 1 . . . . 3 . . . . . . . . . 2 1 . . . . 5 . Disarm Traps 3 | . 1 . . . . . . . . . . . . . . . . . . . . . . . . . . 2 . Reprogram Traps 2 | . . . . . . . 1 . . . . . . . . . . 1 . . . . . . . . . . . Dispatch Records 1 | . . . . . . . 1 . . . . . . . . . . . . . . . . . . . . . . Security Status 1 | . . . . . . . . . . . . . . . . . . . . . . . . . . . . 1 . Transport Status 1 | . . . . . . . . . . . . . . . . . . . . . . . . . . . . 1 . Recall Investigation 6 | . . . . . . 1 1 . . . . 1 . . . . . . 2 . . . . . . . . 1 . Recall Reinforcements 1 | . . . . . . 1 . . . . . . . . . . . . . . . . . . . . . . . Hauler Manifests 3 | . 1 . . . . . . . . . . 1 . . . . . . . . . 1 . . . . . . . Registered Components 3 | . . . . . . 1 1 . . . . . . . . . . . . . . . . . . . . 1 . Registered Prototypes 3 | . . . . . . . 1 . . . . . . . . . . 1 . . . . . . . . . 1 . Zone Layout 9 | . 2 . . . . 5 1 . . . . 1 . . . . . . . . . . . . . . . . . EX-Prototype ID Bank 1 | . . . 1 . . . . . . . . . . . . . . . . . . . . . . . . . . Fabricator Hacks 15 | . . . . . . . 3 . . . . . . . . . . 6 . . . . 2 . . . . 2 2 Load Schematic 7 | . . . . . . . 1 . . . . . . . . . . 3 . . . . 1 . . . . 1 1 Build 8 | . . . . . . . 2 . . . . . . . . . . 3 . . . . 1 . . . . 1 1 Repair Station Hacks 15 | . 3 . . . . . 4 . . . . 4 . . . . . 4 . . . . . . . . . . . Scan Component 7 | . 1 . . . . . 2 . . . . 2 . . . . . 2 . . . . . . . . . . . Repair 7 | . 1 . . . . . 2 . . . . 2 . . . . . 2 . . . . . . . . . . . Refit 1 | . 1 . . . . . . . . . . . . . . . . . . . . . . . . . . . . Recycling Unit Hacks 11 | . . . . . 2 2 4 . . . . . . . . . . 2 1 . . . . . . . . . . Report Inventory 8 | . . . . . 1 1 3 . . . . . . . . . . 2 1 . . . . . . . . . . Retrieve Components 3 | . . . . . 1 1 1 . . . . . . . . . . . . . . . . . . . . . . Scanalyzer 26 | . . . . . . . 7 . . . . 5 . . . . . 3 . . . . 7 . . . . 4 . Insert Component 12 | . . . . . . . 4 . . . . 2 . . . . . 1 . . . . 3 . . . . 2 . Analyze 14 | . . . . . . . 3 . . . . 3 . . . . . 2 . . . . 4 . . . . 2 . Garrison Access Hacks 8 | . . . . . . . 1 . . . . 1 . . . . . 2 . . . 1 1 . . . . 2 . Seal Access 8 | . . . . . . . 1 . . . . 1 . . . . . 2 . . . 1 1 . . . . 2 . Unauthorized Hacks 152 | . 7 . . . 3 23 11 . . . . 4 . . . . . 9 16 9 . 21 10 . . . . 28 11 Terminals 134 | . 6 . . . 2 21 6 . . . . 4 . . . . . 6 14 9 . 21 9 . . . . 26 10 Track 43 | . 2 . . . . 6 2 . . . . . . . . . . 2 4 4 . 7 3 . . . . 9 4 Assimilate 6 | . . . . . . 2 . . . . . . . . . . . 1 . . . . 1 . . . . 2 . Botnet 66 | . 3 . . . 1 12 3 . . . . 4 . . . . . 3 9 4 . 8 3 . . . . 12 4 Detonate 5 | . . . . . . . 1 . . . . . . . . . . . . 1 . . . . . . . 2 1 Operators 9 | . 1 . . . 1 1 . . . . . . . . . . . . 1 . . 1 2 . . . . 1 1 Sabotage 5 | . . . . . . . . . . . . . . . . . . . . . . 5 . . . . . . . Fabricators 5 | . . . . . . . 1 . . . . . . . . . . 1 . . . . 1 . . . . 1 1 Report 5 | . . . . . . . 1 . . . . . . . . . . 1 . . . . 1 . . . . 1 1 Repair Stations . | . . . . . . . . . . . . . . . . . . . . . . . . . . . . . . Recycling Units 12 | . 1 . . . 1 2 4 . . . . . . . . . . 2 2 . . . . . . . . . . Reject 2 | . . . . . . . 1 . . . . . . . . . . . 1 . . . . . . . . . . Mask 1 | . . . . . . 1 . . . . . . . . . . . . . . . . . . . . . . . Tunnel 9 | . 1 . . . 1 1 3 . . . . . . . . . . 2 1 . . . . . . . . . . Scanalyzers 1 | . . . . . . . . . . . . . . . . . . . . . . . . . . . . 1 . Researchers 1 | . . . . . . . . . . . . . . . . . . . . . . . . . . . . 1 . Garrison Access . | . . . . . . . . . . . . . . . . . . . . . . . . . . . . . . Data Cores Recovered 2 | . . . . . . . . . . . . . . . . . . . . . . 2 . . . . . . . Used 2 | . . . . . . . . . . . . . . . . . . . . . . 2 . . . . . . . Hacking Detections 92 | . 10 . . . 3 8 12 . . . . 8 . . . . . 12 12 2 . 6 4 . . . . 10 5 Full Trace Events 12 | . 3 . . . 1 . 3 . . . . 1 . . . . . 1 3 . . . . . . . . . . Feedback Events . | . . . . . . . . . . . . . . . . . . . . . . . . . . . . . . Feedback Blocked . | . . . . . . . . . . . . . . . . . . . . . . . . . . . . . . Robot Schematics Acquired 11 | . 1 . . . . . . . . 6 . 2 . . . . . . . . . . . . . . . 2 . Robots Built 3 | . . . . . . . 2 . . . . . . . . . . . . . . . 1 . . . . . . Matter 459 | . . . . . . . 306 . . . . . . . . . . . . . . . 153 . . . . . . Time 120 | . . . . . . . 80 . . . . . . . . . . . . . . . 40 . . . . . . Total Robot Build Rating 3 | . . . . . . . 2 . . . . . . . . . . . . . . . 1 . . . . . . Part Schematics Acquired 61 | . . . . . . . 5 . . 9 . 6 . . . . . 5 11 . . 5 6 . . . . 10 4 Parts Built 6 | . . . . . . . . . . . . . . . . . . 3 . . . . . . . . . 1 2 Matter 1283 | . . . . . . . . . . . . . . . . . . 815 . . . . . . . . . 256 212 Time 282 | . . . . . . . . . . . . . . . . . . 187 . . . . . . . . . 42 53 Total Part Build Rating 37 | . . . . . . . . . . . . . . . . . . 17 . . . . . . . . . 8 12 Parts Repaired 7 | . 1 . . . . . 2 . . . . 2 . . . . . 2 . . . . . . . . . . . Time 322 | . 26 . . . . . 73 . . . . 135 . . . . . 88 . . . . . . . . . . . Parts Recycled . | . . . . . . . . . . . . . . . . . . . . . . . . . . . . . . Recycled Matter . | . . . . . . . . . . . . . . . . . . . . . . . . . . . . . . Retrieved Matter . | . . . . . . . . . . . . . . . . . . . . . . . . . . . . . . Retrieved Components 21 | . . . . . 9 9 3 . . . . . . . . . . . . . . . . . . . . . . Parts Scanalyzed 11 | . . . . . . . 3 . . . . 2 . . . . . 1 . . . . 3 . . . . 2 . Part Schematics Acquired 11 | . . . . . . . 3 . . . . 2 . . . . . 1 . . . . 3 . . . . 2 . Parts Damaged 4 | . . . . . . . 1 . . . . 2 . . . . . . . . . . 1 . . . . . . Bothacking | -11 -10 -10 -10 -9 -8 -8 -7 -7 -7 -7 -6 -6 -6 -6 -6 -6 -5 -5 -5 -5 -5 -5 -4 -4 -4 -4 -3 -3 -3 ------------ Run | Scr Mat Min Exi Min Mat Sto Fac Low Low Dat Pro Fac Low Low Zio Dee Pro Fac Ext Cet Arc Hub Fac Upp Upp War Pro Res Arm Used RIF Installer . | . . . . . . . . . . . . . . . . . . . . . . . . . . . . . . Robots Hacked 5 | . . . . . . . . . . 1 1 . . . 2 1 . . . . . . . . . . . . . Non-combat . | . . . . . . . . . . . . . . . . . . . . . . . . . . . . . . Combat 5 | . . . . . . . . . . 1 1 . . . 2 1 . . . . . . . . . . . . . Robot Hacks Applied 5 | . . . . . . . . . . 1 1 . . . 2 1 . . . . . . . . . . . . . parse_system 5 | . . . . . . . . . . 1 1 . . . 2 1 . . . . . . . . . . . . . Relay Couplers Released . | . . . . . . . . . . . . . . . . . . . . . . . . . . . . . . Robots Rewired 19 | . . . 3 . . . . . . . . . . . . . . . 11 . . . . . . 5 . . . Allies Hacked 3 | . . . . . . . . . . . . . . . . . . . . . . . . . . 3 . . . Hacks Repelled . | . . . . . . . . . . . . . . . . . . . . . . . . . . . . . . Allies | -11 -10 -10 -10 -9 -8 -8 -7 -7 -7 -7 -6 -6 -6 -6 -6 -6 -5 -5 -5 -5 -5 -5 -4 -4 -4 -4 -3 -3 -3 -------- Run | Scr Mat Min Exi Min Mat Sto Fac Low Low Dat Pro Fac Low Low Zio Dee Pro Fac Ext Cet Arc Hub Fac Upp Upp War Pro Res Arm Total Allies 58 | . . 3 3 1 . 12 2 . . . 1 . . . . . . 1 27 . . . 2 . . 5 . 1 . Largest Group 16 | . . 3 5 5 . 11 11 . . . 1 1 . . . . . 1 16 16 3 3 1 . . 5 . 1 1 Highest-Rated Group 481 | . . 40 69 69 . 183 183 . . . 94 94 . . . . . 10 481 481 84 84 26 . . 274 . 10 10 Highest-Rated Ally 156 | . . 16 21 31 . 29 29 . . . 94 94 . . . . . 10 156 37 32 32 26 . . 60 . 10 10 Total Orders 10 | . . . . . . 2 1 . . . . . . 2 . . . 4 . . . . . . . . . . 1 STAY 1 | . . . . . . . . . . . . . . . . . . 1 . . . . . . . . . . . GOTO 2 | . . . . . . . . . . . . . . . . . . 1 . . . . . . . . . . 1 FOLLOW 2 | . . . . . . . . . . . . . . . . . . 2 . . . . . . . . . . . EXPLORE 5 | . . . . . . 2 1 . . . . . . 2 . . . . . . . . . . . . . . . Ally Attacks 418 | . . 7 . 52 . 3 82 . . . 19 1 . . . . . . 149 88 3 3 . . . 11 . . . Total Damage 8755 | . . 93 . 567 . 30 1148 . . . 630 613 . . . . . . 3601 1377 68 61 . . . 567 . . . Kills 84 | . . 3 . 12 . . 14 . . . 6 3 . . . . . . 31 13 1 . . . . 1 . . . Allies Corrupted . | . . . . . . . . . . . . . . . . . . . . . . . . . . . . . . Allies Melted 1 | . . . . . . . . . . . . . . . . . . . . . . . . . . 1 . . . Intel | -11 -10 -10 -10 -9 -8 -8 -7 -7 -7 -7 -6 -6 -6 -6 -6 -6 -5 -5 -5 -5 -5 -5 -4 -4 -4 -4 -3 -3 -3 ------- Run | Scr Mat Min Exi Min Mat Sto Fac Low Low Dat Pro Fac Low Low Zio Dee Pro Fac Ext Cet Arc Hub Fac Upp Upp War Pro Res Arm Robot Analysis Total 30 | . 4 . . . . 3 2 . . . . . . . . . . 3 9 . . 1 1 . . . . 6 1 Derelict Logs Recovered 16 | . . . . 1 . . . 2 1 . 3 . 2 2 . . 2 . . . . . . 2 1 . . . . Drone Launches 18 | . . . . . . 16 . . . . . . 2 . . . . . . . . . . . . . . . . Drone Recoveries . | . . . . . . . . . . . . . . . . . . . . . . . . . . . . . . Exploration | -11 -10 -10 -10 -9 -8 -8 -7 -7 -7 -7 -6 -6 -6 -6 -6 -6 -5 -5 -5 -5 -5 -5 -4 -4 -4 -4 -3 -3 -3 ------------- Run | Scr Mat Min Exi Min Mat Sto Fac Low Low Dat Pro Fac Low Low Zio Dee Pro Fac Ext Cet Arc Hub Fac Upp Upp War Pro Res Arm Turns Passed 17373 | 116 1319 807 1364 611 341 829 964 565 564 62 649 1017 387 427 610 517 479 887 869 266 98 455 646 283 64 539 130 773 735 Spaces Moved 21114 | 57 773 477 830 514 239 772 1126 903 886 107 828 1392 647 667 1022 814 591 888 692 313 129 768 1228 409 224 1064 366 1589 799 Core 5 | 3 . . . . . 2 . . . . . . . . . . . . . . . . . . . . . . . Treads 1868 | 52 346 477 830 163 . . . . . . . . . . . . . . . . . . . . . . . . . Legs . | . . . . . . . . . . . . . . . . . . . . . . . . . . . . . . Wheels 429 | 2 427 . . . . . . . . . . . . . . . . . . . . . . . . . . . . Hover 18811 | . . . . 351 239 769 1126 903 886 107 828 1392 647 667 1022 814 591 888 692 313 129 768 1228 409 224 1064 366 1589 799 Flight 1 | . . . . . . 1 . . . . . . . . . . . . . . . . . . . . . . . Fastest Speed 18 | 50 80 160 160 66 66 66 55 55 55 55 55 52 52 52 52 24 48 48 48 24 24 24 24 24 24 22 22 22 18 Average Speed 54 | 151 121 160 160 95 66 70 58 55 55 55 55 54 52 52 52 45 48 48 48 29 24 24 24 24 24 24 22 22 22 Slowest Speed 180 | 160 160 160 160 160 66 180 111 55 55 55 55 55 52 52 52 52 48 48 48 130 24 24 24 24 24 87 22 22 78 Overloaded Moves 34 | . . . . . . . . . . . . . . . . . . . . . . . . . . . . . 34 Propulsion Burnouts . | . . . . . . . . . . . . . . . . . . . . . . . . . . . . . . Robots Hopped . | . . . . . . . . . . . . . . . . . . . . . . . . . . . . . . Cave-ins Triggered . | . . . . . . . . . . . . . . . . . . . . . . . . . . . . . . Exploration Rate (%) 68 | 4 91 91 94 85 22 96 45 92 88 76 94 32 90 83 89 83 80 24 78 82 76 71 37 61 48 90 57 56 42 Regions Visited 29 Branch Regions 22 Pre-discovered Areas 20 | . 1 . 1 1 1 1 3 1 . 1 . . . 1 4 . . 2 1 . . . . 1 1 . . . . Known Exits Taken 25 | . 1 . . . 1 1 1 1 1 1 1 1 1 1 1 1 1 1 1 1 1 1 1 1 1 1 1 1 . Unknown Exits Taken 4 | 1 . 1 1 1 . . . . . . . . . . . . . . . . . . . . . . . . . Scrap Searched 39 | . . 2 . 1 . . . 5 2 . 5 . 9 4 2 . 3 . . . . . . 2 1 . 3 . . Spaces Dug 85 | . . . . . . 4 . . . . . 7 . . . 13 4 12 . . . 3 5 6 . . 2 16 13 Terrain Destroyed 181 | . 3 . . . . 4 25 . . . . 7 . . . 13 4 12 . . . 3 5 6 . . 2 16 81 Melee 85 | . . . . . . 4 . . . . . 7 . . . 13 4 12 . . . 3 5 6 . . 2 16 13 Projectile . | . . . . . . . . . . . . . . . . . . . . . . . . . . . . . . AOE 96 | . 3 . . . . . 25 . . . . . . . . . . . . . . . . . . . . . 68 Actions | -11 -10 -10 -10 -9 -8 -8 -7 -7 -7 -7 -6 -6 -6 -6 -6 -6 -5 -5 -5 -5 -5 -5 -4 -4 -4 -4 -3 -3 -3 --------- Run | Scr Mat Min Exi Min Mat Sto Fac Low Low Dat Pro Fac Low Low Zio Dee Pro Fac Ext Cet Arc Hub Fac Upp Upp War Pro Res Arm Total 25885 | 71 1019 520 863 620 389 989 1384 954 942 108 993 1613 697 734 1068 923 762 1290 1202 465 172 958 1491 564 231 1347 399 1910 1207 Wait 3017 | . 96 38 3 76 97 85 148 13 7 . 92 99 11 45 16 32 140 316 406 114 33 111 175 113 7 195 21 238 290 Move 21085 | 56 772 476 829 513 238 771 1125 902 885 106 827 1391 646 666 1021 813 590 887 691 312 128 767 1227 408 223 1063 365 1588 799 Hop . | . . . . . . . . . . . . . . . . . . . . . . . . . . . . . . Pick Up 113 | 2 12 2 4 1 3 2 9 2 4 . 3 8 12 . 2 6 2 5 2 3 . 3 2 6 . 10 . 5 3 Fast Attach 91 | 7 6 . 2 1 2 14 4 1 . . 2 9 . . . 5 . 3 1 3 . 3 2 . . 16 1 6 3 Attach 29 | . 2 . 1 1 . 1 3 . . . 1 1 . . . 4 1 1 . . . . . 3 . 4 . 1 5 Detach 6 | . 1 . . . . 1 1 . . . . . . . . . . . . . . . 1 . . . . . 2 Swap 39 | . . . . . . 1 5 . . 1 2 2 . . 3 6 . 3 1 2 . 2 4 1 . 1 . . 5 Drop 176 | . 15 2 6 1 3 16 9 3 4 . 4 14 12 . 2 13 1 6 3 6 . 5 5 6 . 27 1 10 2 Fire 82 | 6 72 1 . . . . . . . . . . . . . . . . . . . . . . . . . . 3 Melee 706 | . . . 5 12 33 65 47 17 21 1 34 57 7 16 24 38 18 42 17 13 11 38 49 17 1 . 7 49 67 Ram 2 | . . . . . . . . . . . . . . . . . . . 1 . . . . . . . . . 1 Kick . | . . . . . . . . . . . . . . . . . . . . . . . . . . . . . . Crush 1 | . . 1 . . . . . . . . . . . . . . . . . . . . . . . . . . . Escape Stasis 21 | . . . . . . . . . . . . 11 . . . . . . 3 . . . 7 . . . . . . Rewire 88 | . . . 13 . . . . . . . . . . . . . . . 57 . . . . . . 18 . . . Trap . | . . . . . . . . . . . . . . . . . . . . . . . . . . . . . . Miscellaneous 429 | . 43 . . 15 13 33 33 16 21 . 28 21 9 7 . 6 10 27 20 12 . 29 19 10 . 13 4 13 27 Route ------- -11/Scrapyard -10/Materials (discovered 4 exits: [*Mat x3] / *Min) -10/Mines (discovered 3 exits: [*Mat x2] / *Exi) -10/Exiles (discovered 2 exits: [*Min x2]) -9/Mines (discovered 2 exits: *Mat x2) -8/Materials -8/Storage (discovered 2 exits: *Fac / Rec) -7/Factory (discovered 5 exits: *Fac x3 / *Low x2) -7/Lower Caves -7/Lower Caves (discovered 2 exits: *Fac / *Dat) -7/Data Miner -6/Proximity Caves -6/Factory (discovered 2 exits: Fac / *Low) -6/Lower Caves -6/Lower Caves (discovered 2 exits: *Fac / *Zio) -6/Zion (discovered 2 exits: *Dee / *Pro) -6/Deep Caves -5/Proximity Caves -5/Factory (discovered 6 exits: Fac x2 / *Upp x2 / *Ext x2) -5/Extension (discovered 3 exits: *Fac x2 / *Cet) -5/Cetus (discovered 2 exits: *Fac / *Arc) -5/Archives (discovered 3 exits: *Fac / *Hub x2) -5/Hub_04(d) (discovered 4 exits: *Fac x4) -4/Factory (discovered 3 exits: *Res x2 / *Upp) -4/Upper Caves -4/Upper Caves (discovered 2 exits: *Res / *War) -4/Warlord -3/Proximity Caves -3/Research (discovered 6 exits: *Res x3 / *Arm / *Qua x2) -3/Armory (discovered 1 exit: *Res) History --------- Turn | Location | Event 1 | -11/Scrapyard | Upgraded with Propulsion slot (x1) 1 | -11/Scrapyard | Upgraded with Utility slot (x1) 1 | -11/Scrapyard | Upgraded with Weapon slot (x1) 12 | -11/Scrapyard | Discovered new exit (range 15) 117 | -11/Scrapyard | Entered Materials 308 | -10/Materials | Build established: Mutant 367 | -10/Materials | Discovered new exit (range 15) 399 | -10/Materials | Central database locked down 399 | -10/Materials | Identified exit to Mines 522 | -10/Materials | Discovered new exit (range 5) 625 | -10/Materials | Reached level 2 628 | -10/Materials | Upgraded with Utility slot (x1) 762 | -10/Materials | Core integrity fell below 50% 922 | -10/Materials | Build established: Hacker-Mutant 933 | -10/Materials | Discovered new exit (range 15) 1137 | -10/Materials | Discovered new exit (range 4) 1206 | -10/Materials | Repaired Lgt. Armor Plating 1274 | -10/Materials | Reached level 3 1289 | -10/Materials | Upgraded with Utility slot (x1) 1436 | -10/Materials | Entered Mines 1516 | -10/Mines | Assisted by bots powering up and referring to "LRC-V3" 1539 | -10/Mines | Discovered new exit (range 5) 1835 | -10/Mines | Received a Rocket Launcher from a helpful Derelict 1880 | -10/Mines | Deemed a non-threat by the Exiles lab entrance 1880 | -10/Mines | Discovered new exit (range 5) 1985 | -10/Mines | Discovered new exit (range 13) 2005 | -10/Mines | Joined a pair of Derelicts in attacking an 0b10 outpost 2169 | -10/Mines | A weapon hastily lodged in a ceiling crevice suddenly fell to the ground 2243 | -10/Mines | Entered Exiles 2243 | -10/Exiles | Found Exiles lab destroyed 2243 | -10/Exiles | Accompanied by 2 allies 2271 | -10/Exiles | Discovered new exit (range 16) 2509 | -10/Exiles | Opened EX-Vault 2520 | -10/Exiles | Found Modified TNC 2659 | -10/Exiles | Learned location of Zion (-6) 3108 | -10/Exiles | Discovered new exit (range 15) 3607 | -10/Exiles | Entered Mines 3607 | -9/Mines | Accompanied by 5 allies 3608 | -9/Mines | Assembled infested the area 3608 | -9/Mines | Reached level 4 3640 | -9/Mines | Build established: Commander-Assassin 3796 | -9/Mines | Received a Mining Laser from a helpful Derelict 3855 | -9/Mines | Discovered new exit (range 17) 4076 | -9/Mines | Upgraded with Weapon slot (x1) 4106 | -9/Mines | Discovered new exit (range 11) 4218 | -9/Mines | Entered Materials 4220 | -8/Materials | Reached level 5 4220 | -8/Materials | Upgraded with Utility slot (x1) 4230 | -8/Materials | Build established: Hacker-Scout 4281 | -8/Materials | Reached level 6 4322 | -8/Materials | Discovered new exit (range 10) 4393 | -8/Materials | Identified exit to Storage 4559 | -8/Materials | Entered Storage 4561 | -8/Storage | Reached level 7 4587 | -8/Storage | Central database locked down 4712 | -8/Storage | Reached level 8 4734 | -8/Storage | Upgraded with Utility slot (x1) 4735 | -8/Storage | Upgraded with Power slot (x1) 4809 | -8/Storage | Discovered new exit (range 13) 4815 | -8/Storage | Found Prototype Launcher 4815 | -8/Storage | Identified Gui. Missile Launcher 4828 | -8/Storage | Identified exit to Recycling 5122 | -8/Storage | Reached level 9 5288 | -8/Storage | Discovered new exit (range 38) 5359 | -8/Storage | Assisted by bots powering up and referring to "LRC-V3" 5376 | -8/Storage | Identified exit to Factory 5388 | -8/Storage | Entered Factory 5388 | -7/Factory | Accompanied by 12 allies 5390 | -7/Factory | Reached level 10 5390 | -7/Factory | Upgraded with Utility slot (x1) 5419 | -7/Factory | Discovered new exit (range 11) 5426 | -7/Factory | Identified exit to Factory 5562 | -7/Factory | Fabricated O-16 Technician (x1) 5607 | -7/Factory | Fabricated O-16 Technician? 5621 | -7/Factory | Reached level 11 5808 | -7/Factory | Repaired Insulated Plating 5864 | -7/Factory | Garrison activated, responded to threat 5872 | -7/Factory | Reached level 12 5873 | -7/Factory | Upgraded with Propulsion slot (x1) 5873 | -7/Factory | Upgraded with Utility slot (x1) 5953 | -7/Factory | Discovered exit to Factory (range 6) 6005 | -7/Factory | Reached level 13 6006 | -7/Factory | Upgraded with Weapon slot (x1) 6058 | -7/Factory | Central database locked down 6062 | -7/Factory | Identified exit to Lower Caves 6137 | -7/Factory | Discovered exit to Factory (range 4) 6175 | -7/Factory | Reached level 14 6246 | -7/Factory | Repaired Broken Imp. System Backup Module 6344 | -7/Factory | Garrison activated, responded to threat 6352 | -7/Factory | Entered Lower Caves 6413 | -7/Lower Caves | Reached level 15 6715 | -7/Lower Caves | Discovered new exit (range 12) 6720 | -7/Lower Caves | Identified exit to Lower Caves 6738 | -7/Lower Caves | Learned Factory emergency access door positions 6917 | -7/Lower Caves | Entered another Lower Caves area 6973 | -7/Lower Caves | Discovered exit to Factory (range 15) 7006 | -7/Lower Caves | Spotted B-75 Beast 7044 | -7/Lower Caves | Learned Factory garrison access intel 7067 | -7/Lower Caves | Destroyed B-75 Beast 7322 | -7/Lower Caves | Discovered new exit (range 17) 7330 | -7/Lower Caves | Identified exit to Data Miner 7416 | -7/Lower Caves | Encountered a Warlord checkpoint 7481 | -7/Lower Caves | Entered Data Miner 7481 | -7/Data Miner | Discovered new exit (range 6) 7485 | -7/Data Miner | Identified exit to Proximity Caves 7491 | -7/Data Miner | Met Data Miner 7508 | -7/Data Miner | Learned location of Section 7 (-3) 7508 | -7/Data Miner | Acquired the access code to Warlord's prototype stash 7517 | -7/Data Miner | Received God Mode back door access code from Data Miner 7543 | -7/Data Miner | Entered Proximity Caves 7545 | -6/Proximity Caves | Reached level 16 7573 | -6/Proximity Caves | Spotted B-75 Beast 7573 | -6/Proximity Caves | Learned location of 1 exit from Factory 7575 | -6/Proximity Caves | Escorted by Enhanced Grunt 7587 | -6/Proximity Caves | Allies destroyed B-75 Beast 7631 | -6/Proximity Caves | Learned Factory emergency access door positions 7659 | -6/Proximity Caves | Learned location of 1 exit from Factory 7910 | -6/Proximity Caves | Reached level 17 7928 | -6/Proximity Caves | Upgraded with Utility slot (x1) 8107 | -6/Proximity Caves | Discovered exit to Factory (range 7) 8108 | -6/Proximity Caves | Attracted the attention of an 0b10 checkpoint 8192 | -6/Proximity Caves | Entered Factory 8192 | -6/Factory | Accompanied by 1 ally 8193 | -6/Factory | Identified exit to Factory 8193 | -6/Factory | Identified exit to Lower Caves 8194 | -6/Factory | Reached level 18 8195 | -6/Factory | Loaded intel: 4 garrison access locations 8433 | -6/Factory | Central database locked down 8499 | -6/Factory | Incoming investigation squad redirected 8675 | -6/Factory | Upgraded with Weapon slot (x1) 8911 | -6/Factory | Repaired Broken Imp. Armor Integrity Analyzer 8944 | -6/Factory | Repaired Broken Biomechanical Wings 8994 | -6/Factory | Reached level 19 9009 | -6/Factory | Found Exp. Signal Interpreter 9209 | -6/Factory | Entered Lower Caves 9211 | -6/Lower Caves | Learned location of 1 exit from Proximity Caves 9213 | -6/Lower Caves | Attracted the attention of an 0b10 checkpoint 9275 | -6/Lower Caves | Identified exit to Lower Caves 9575 | -6/Lower Caves | Encountered a Warlord checkpoint 9596 | -6/Lower Caves | Entered another Lower Caves area 9596 | -6/Lower Caves | Accompanied by 2 allies 9596 | -6/Lower Caves | Discovered exit to Factory (range 9) 9754 | -6/Lower Caves | Learned location of 1 exit from Factory 9914 | -6/Lower Caves | Discovered new exit (range 15) 9933 | -6/Lower Caves | Identified exit to Zion 10023 | -6/Lower Caves | Entered Zion 10050 | -6/Zion | Discovered new exit (range 14) 10064 | -6/Zion | Identified exit to Proximity Caves 10153 | -6/Zion | Found Prototype Device 10156 | -6/Zion | Identified Phasing AFG 10185 | -6/Zion | Given A8's code to call for help 10265 | -6/Zion | Learned location of Warlord (-4) 10523 | -6/Zion | Discovered new exit (range 9) 10616 | -6/Zion | Saw the warning signs outside the Deep Caves entrance 10617 | -6/Zion | Identified exit to Deep Caves 10633 | -6/Zion | Entered Deep Caves 10659 | -6/Deep Caves | Found Surveybot 24 Scanner 10663 | -6/Deep Caves | Found Surveybot 24 Chip 10784 | -6/Deep Caves | Attacked by Z-Imprinter 10800 | -6/Deep Caves | Destroyed Z-Imprinter 10808 | -6/Deep Caves | Core integrity fell below 50% 10830 | -6/Deep Caves | Found Zio. Metafield Generator 10881 | -6/Deep Caves | Found Prototype Protection 10881 | -6/Deep Caves | Identified Zio. Heavy Carapace 11011 | -6/Deep Caves | Spotted as-44633 11117 | -6/Deep Caves | Discovered new exit (range 20) 11127 | -6/Deep Caves | Identified exit to Proximity Caves 11150 | -6/Deep Caves | Entered Proximity Caves 11152 | -5/Proximity Caves | Reached level 20 11152 | -5/Proximity Caves | Upgraded with Utility slot (x1) 11217 | -5/Proximity Caves | Learned Factory garrison access intel 11391 | -5/Proximity Caves | Attracted the attention of an 0b10 checkpoint 11534 | -5/Proximity Caves | Learned Factory security intel 11629 | -5/Proximity Caves | Entered Factory 11630 | -5/Factory | Identified exit to Factory 11631 | -5/Factory | Reached level 21 11633 | -5/Factory | Loaded intel: 4 garrison access locations 11686 | -5/Factory | Incoming investigation squad redirected 11777 | -5/Factory | Discovered new exit (range 22) 11809 | -5/Factory | Identified exit to Upper Caves 11809 | -5/Factory | Identified exit to Extension 11826 | -5/Factory | Repaired Greatsword 11892 | -5/Factory | Fabricated Exp. Terrain Scanner (x1) 11987 | -5/Factory | Repaired Imp. Shield Generator 12264 | -5/Factory | Destroyed 7 combat bots 12273 | -5/Factory | Reached level 22 12273 | -5/Factory | Upgraded with Utility slot (x1) 12324 | -5/Factory | Discovered exit to Factory (range 22) 12396 | -5/Factory | Fabricated Imp. Powered Armor (x1) 12484 | -5/Factory | Fabricated Plasma Sword (x1) 12503 | -5/Factory | Incoming investigation squad redirected 12516 | -5/Factory | Entered Extension 12531 | -5/Extension | Rescued A7 12574 | -5/Extension | Incoming investigation squad redirected 12669 | -5/Extension | Rescued a captive Derelict 12877 | -5/Extension | Discovered exit to Factory (range 30) 12886 | -5/Extension | Rescued a captive Derelict 12886 | -5/Extension | Rescued a captive Derelict 12906 | -5/Extension | Incoming investigation squad redirected 12996 | -5/Extension | Spotted B-75 Beast 13001 | -5/Extension | Spotted B-75 Beast 13015 | -5/Extension | Destroyed B-75 Beast 13021 | -5/Extension | Reached level 23 13021 | -5/Extension | Allies destroyed B-75 Beast 13082 | -5/Extension | Rescued a captive Derelict 13090 | -5/Extension | Rescued a captive Derelict 13090 | -5/Extension | Rescued a captive Derelict 13093 | -5/Extension | Rescued a captive Derelict 13094 | -5/Extension | Rescued a captive Derelict 13124 | -5/Extension | Rescued a captive Derelict 13125 | -5/Extension | Rescued a captive Derelict 13147 | -5/Extension | Rescued a captive Derelict 13149 | -5/Extension | Rescued a captive Derelict 13227 | -5/Extension | Extracted ID and sensor layout for unrecognized location from A7's data core 13229 | -5/Extension | Found Prototype Protection 13229 | -5/Extension | Identified Med. Regenerative Plating 13280 | -5/Extension | Rescued a captive Derelict 13282 | -5/Extension | Rescued a captive Derelict 13313 | -5/Extension | Discovered new exit (range 27) 13314 | -5/Extension | Rescued a captive Derelict 13318 | -5/Extension | Discovered exit to Factory (range 27) 13362 | -5/Extension | Identified exit to Cetus 13385 | -5/Extension | Entered Cetus 13385 | -5/Cetus | Accompanied by 16 allies 13398 | -5/Cetus | Spotted Cetus Guard 13398 | -5/Cetus | Spotted Cetus Guard 13401 | -5/Cetus | Spotted Cetus Guard 13405 | -5/Cetus | Spotted Cetus Guard 13412 | -5/Cetus | Allies destroyed Cetus Guard 13414 | -5/Cetus | Allies destroyed Cetus Guard 13415 | -5/Cetus | Destroyed Cetus Guard 13416 | -5/Cetus | Allies destroyed Cetus Guard 13494 | -5/Cetus | Discovered new exit (range 30) 13498 | -5/Cetus | Found a strange terminal 13505 | -5/Cetus | Identified exit to Archives 13550 | -5/Cetus | Spotted Cetus Guard 13551 | -5/Cetus | Spotted Cetus Guard 13568 | -5/Cetus | Allies destroyed Cetus Guard 13568 | -5/Cetus | Spotted Cetus Guard 13568 | -5/Cetus | Spotted Cetus Guard 13572 | -5/Cetus | Discovered exit to Factory (range 19) 13577 | -5/Cetus | Destroyed Cetus Guard 13584 | -5/Cetus | Destroyed Cetus Guard 13584 | -5/Cetus | Destroyed Cetus Guard 13600 | -5/Cetus | Met Revision 17 13604 | -5/Cetus | Destroyed Revision 17 13651 | -5/Cetus | Entered Archives 13651 | -5/Archives | Accompanied by 3 allies 13653 | -5/Archives | Discovered exit to Factory (range 28) 13654 | -5/Archives | Discovered new exit (range 28) 13663 | -5/Archives | Reached level 24 13674 | -5/Archives | Discovered new exit (range 17) 13684 | -5/Archives | Unable to access archive contents 13687 | -5/Archives | Unable to access archive contents 13689 | -5/Archives | Unable to access archive contents 13729 | -5/Archives | Identified exit to Hub_04(d) 13749 | -5/Archives | Entered Hub_04(d) 13749 | -5/Hub_04(d) | Accompanied by 3 allies 13795 | -5/Hub_04(d) | Discovered exit to Factory (range 22) 13861 | -5/Hub_04(d) | Discovered exit to Factory (range 22) 13964 | -5/Hub_04(d) | Discovered exit to Factory (range 22) 13972 | -5/Hub_04(d) | Discovered exit to Factory (range 28) 14168 | -5/Hub_04(d) | Network Hub disabled 14168 | -5/Hub_04(d) | Network Hub disabled 14170 | -5/Hub_04(d) | Spotted Lightning 14170 | -5/Hub_04(d) | Spotted Lightning 14171 | -5/Hub_04(d) | Spotted Lightning 14185 | -5/Hub_04(d) | Incoming investigation squad redirected 14188 | -5/Hub_04(d) | Network Hub disabled 14195 | -5/Hub_04(d) | Network Hub disabled 14204 | -5/Hub_04(d) | Entered Factory 14218 | -4/Factory | Reached level 25 14383 | -4/Factory | Discovered new exit (range 29) 14396 | -4/Factory | Fabricated O-16 Technician? 14400 | -4/Factory | Discovered new exit (range 29) 14411 | -4/Factory | Identified exit to Research 14469 | -4/Factory | Discovered exit to Research (range 30) 14850 | -4/Factory | Identified exit to Upper Caves 14850 | -4/Factory | Entered Upper Caves 14852 | -4/Upper Caves | Learned 4 Research zone layouts 14868 | -4/Upper Caves | Spotted B-86 Titan 15030 | -4/Upper Caves | Discovered new exit (range 16) 15031 | -4/Upper Caves | Attracted the attention of an 0b10 checkpoint 15081 | -4/Upper Caves | Destroyed B-86 Titan 15115 | -4/Upper Caves | Identified exit to Upper Caves 15133 | -4/Upper Caves | Entered another Upper Caves area 15134 | -4/Upper Caves | Discovered exit to Research (range 10) 15175 | -4/Upper Caves | Attracted the attention of an 0b10 checkpoint 15195 | -4/Upper Caves | Discovered new exit (range 9) 15197 | -4/Upper Caves | Identified exit to Warlord 15197 | -4/Upper Caves | Entered Warlord 15199 | -4/Warlord | Reached level 26 15216 | -4/Warlord | Discovered new exit (range 14) 15299 | -4/Warlord | Found Prototype Energy Gun 15299 | -4/Warlord | Identified Plasma Storm 15399 | -4/Warlord | Visited the Vortex Lab 15402 | -4/Warlord | Found Prototype Energy Gun 15402 | -4/Warlord | Identified Vortex Rifle 15403 | -4/Warlord | Found Vortex Rifle 15407 | -4/Warlord | Found Prototype Launcher 15407 | -4/Warlord | Identified Vortex Catalyst Activator 15421 | -4/Warlord | Warlord's base attacked by MAIN.C 15441 | -4/Warlord | Met Warlord 15444 | -4/Warlord | Opened Warlord's prototype stash 15448 | -4/Warlord | Found Prototype Reactor 15448 | -4/Warlord | Identified Vortex Chain Reactor 15457 | -4/Warlord | Found Ghost Barrier 15459 | -4/Warlord | Found Prototype Processor 15459 | -4/Warlord | Identified Exp. Target Analyzer 15461 | -4/Warlord | Found Prototype Device 15461 | -4/Warlord | Identified Exp. Focal Shield 15464 | -4/Warlord | Found Prototype Device 15464 | -4/Warlord | Identified Exp. Phase Shifter 15664 | -4/Warlord | Spotted B-90 Cyclops 15672 | -4/Warlord | P-70 Sage assimilated allied WV-EA8(M) 15689 | -4/Warlord | Spotted B-86 Titan 15720 | -4/Warlord | Opened side exit 15736 | -4/Warlord | Identified exit to Proximity Caves 15736 | -4/Warlord | Entered Proximity Caves 15748 | -3/Proximity Caves | Spotted B-86 Titan 15839 | -3/Proximity Caves | Acquired the password to a Derelict Tinkerer's latest research 15842 | -3/Proximity Caves | Found Prototype Special Weapon 15842 | -3/Proximity Caves | Identified Molecular Deconstructor 15849 | -3/Proximity Caves | Discovered exit to Research (range 17) 15866 | -3/Proximity Caves | Entered Research 15867 | -3/Research | Identified exit to Quarantine 15868 | -3/Research | Reached level 27 15988 | -3/Research | Identified exit to Research 15988 | -3/Research | Identified exit to Armory 16219 | -3/Research | Spotted B-86 Titan 16219 | -3/Research | Reached level 28 16219 | -3/Research | Upgraded with Utility slot (x1) 16266 | -3/Research | Found Prototype Device 16273 | -3/Research | Central database locked down 16280 | -3/Research | Identified Adv. Kinecellerator 16290 | -3/Research | Spotted B-86 Titan 16293 | -3/Research | Destroyed B-86 Titan 16299 | -3/Research | Found Nanosword 16301 | -3/Research | Found Nanosword 16445 | -3/Research | Fabricated Adv. Powered Armor (x1) 16553 | -3/Research | Found Prototype Device 16553 | -3/Research | Identified Exp. Transmission Jammer 16639 | -3/Research | Entered Armory 16639 | -3/Armory | Accompanied by 1 ally 16964 | -3/Armory | Spotted B-86 Titan 16986 | -3/Armory | Discovered exit to Research (range 23) 17065 | -3/Armory | Fabricated System Restoration Module? 17242 | -3/Armory | Reached level 29 17330 | -3/Armory | Core integrity fell below 50% 17364 | -3/Armory | Core integrity fell below 20% 17374 | -3/Armory | Destroyed by Y-72 Warden with Railgun Last Messages --------------- 17366_ G-67 Veteran destroyed. 17366_ S-43 Plague destroyed. 17366_ G-67 Veteran destroyed. 17366_ Destroyed Lgt. Antimatter Reactor. 17366_ Destroyed Adv. Heat Sink. 17366_ Y-72 Warden destroyed. 17366_ Destroyed Adv. Sensor Array. 17366_ Destroyed Antigrav System. 17368_ The unstable cave ceiling collapses. 17368_ G-67 Veteran destroyed. 17368_ W-44 Eye destroyed. 17368_ Destroyed Plasma Rifle. 17368_ G-73 Enforcer destroyed. 17368_ G-67 Veteran destroyed. 17368_ Arsenal Racks disabled. 17368_ Y-72 Warden destroyed. 17368_ Penetrated by Slug. 17370_ G-67 Veteran destroyed. 17371_ Slug penetrates Earth. 17374_ Penetrated by Slug. Map ----- +----------------------------------------------------+ | | | | | | | | | | | | | | | | | | | #?################################################ | | ########################### """T""" ###### | | ########################### """ """ ###### | | ########################### ###### | | ########################### """""" ###### | | ########################### """""" ###### | | #################### o/ """""" + ## | | ################# # ###### # ######## | | ################## ######+###### ######## | | ################## #### ##### | | ############## + ######## ## "" | | ############## """ ## ######## ##""" | | ############## """ ;; ######## ##"T | | ############## """ [;; ;;###### ##""" | | ############## % ;###### ## "" | | ############# = %[ ; ##### ##### | | ############# @ %== ;;#####+##### | | ############# ;; #### ## | | ############## """ ####o## | | ############# """ #### ## | | ############## ### "" #### ## | | ########################## "" #### | | ########################## YY "" ####### | | ####################### "" ####### | | ####################### % "" ####### | | ####################### ####### | | ####################### #### | | ####################### ## #### < | | ?###################### # #######+## # | | ####################### + =%= !+* | | ####################### # *[ %+! | | ####################### # #######+## #% | | ####################### ####### #### | | ?###################### ####### #### | | ?###################### ####### ####### | | ?##?################### ####### !####### | | ?#?#################### ####### *=####### | | ?#??################################ **]"###### | | #################################### ]=!!!###### | | ?##?################################ ==]]]=+/%!=] | | #####?############################## ==]]]]%###### | +----------------------------------------------------+ Best States ------------- Heat Dissipation 56 Energy Generation 65 Energy Capacity 700 Matter Stores 300 Matter Capacity 300 Sight Range 17 Robot Scan Range 22 Terrain Scan Range 30 Terrain Scan Density 2210 Additional Mass Support 12 Armor Coverage 1425 Resistance: EM 20 Melee Speed Boost 20 Phase Shifting 20 Evasion (%) 94 Melee Accuracy 8 Target Analysis 12 Armor Integrity Analysis 50 Recoil Reduction 1 Offensive Hacking 31 Defensive Hacking 35 Item Schematics ----------------- Imp. Maneuvering Thrusters | -7/Factory | Hacked Imp. Heavy Armor Plating | -7/Factory | Hacked Cmb. Airjet | -7/Factory | Scanalyzed Hacking Suite | -7/Factory | Scanalyzed Imp. System Backup Module | -7/Factory | Scanalyzed Combat Drone Bay | -7/Data Miner | Free Lgt. Regenerative Plating | -7/Data Miner | Free Exp. Flexi-carbon Leg | -7/Data Miner | Free Cmb. Gravmag System | -7/Data Miner | Free Exp. Terrain Scanner | -7/Data Miner | Free Exp. Terrain Scan Processor | -7/Data Miner | Free Cloaking Device | -7/Data Miner | Free Mni. Smartbomb Launcher | -7/Data Miner | Free Plasma Sword | -7/Data Miner | Free Powered Armor | -6/Factory | Hacked Adv. Datajack | -6/Factory | Hacked Biomechanical Wings | -6/Factory | Scanalyzed Imp. Armor Integrity Analyzer | -6/Factory | Scanalyzed Hvy. Flak Cannon | -6/Factory | Hacked Power Sword | -6/Factory | Hacked Imp. Powered Armor | -5/Factory | Hacked System Restoration Module | -5/Factory | Scanalyzed Linear Gravjet | -5/Factory | Hacked Adv. Actuator Array | -5/Factory | Hacked Overload Amplifier | -5/Factory | Hacked Adv. System Shield | -5/Extension | Hacked Adv. Hacking Suite | -5/Extension | Hacked Adv. Melee Analysis Suite | -5/Extension | Hacked Cold Fusion Reactor | -5/Extension | Hacked Adv. Shield Generator | -5/Extension | Hacked Exp. Sensor Array | -5/Extension | Hacked Exp. Signal Interpreter | -5/Extension | Hacked Exp. Targeting Computer | -5/Extension | Hacked Q-thruster | -5/Extension | Hacked Imp. Linear Gravjet | -5/Extension | Hacked Nanoactuators | -5/Extension | Hacked Biometal Leg | -5/Hub_04(d) | Hacked Hvy. Disruptor Cannon | -5/Hub_04(d) | Hacked Lrn. Proton Cannon | -5/Hub_04(d) | Hacked Neutron Cannon | -5/Hub_04(d) | Hacked Hvy. Gauss Cannon | -5/Hub_04(d) | Hacked Enh. Nova Cannon | -4/Factory | Hacked Adv. Reaction Control System | -4/Factory | Scanalyzed Imp. Core Analyzer | -4/Factory | Scanalyzed Centrium Wheel | -4/Factory | Hacked Hvy. Neutron Cannon | -4/Factory | Hacked Force Lance | -4/Factory | Scanalyzed Biometal Heavy Treads | -3/Research | Hacked Adv. Component Analysis Suite | -3/Research | Hacked Enh. Quantum Rifle | -3/Research | Hacked Exp. Gyrokinetic Inverter | -3/Research | Hacked Adv. Powered Armor | -3/Research | Hacked Adv. Kinecellerator | -3/Research | Scanalyzed Exp. Phase Shifter | -3/Research | Scanalyzed Cmb. Linear Gravjet | -3/Research | Hacked Gamma Bomb Array | -3/Research | Hacked Linear Accelerator | -3/Research | Hacked Adv. Armor Integrity Analyzer | -3/Armory | Hacked Vibroblade | -3/Armory | Hacked Centrium Leg | -3/Armory | Hacked Stasis Projector | -3/Armory | Hacked Robot Schematics ------------------ O-16 Technician | -10/Materials | Hacked S-27 Virus | -7/Data Miner | Free G-50 Soldier | -7/Data Miner | Free L-41 Fighter | -7/Data Miner | Free H-66 Slayer | -7/Data Miner | Free P-70 Sage | -7/Data Miner | Free I-36 Angel | -7/Data Miner | Free A-15 Conveyor | -6/Factory | Hacked B-48 Gladiator | -6/Factory | Hacked E-15 Imp | -3/Research | Hacked S-43 Plague | -3/Research | Hacked Fabricated ------------ O-16 Technician | x1 | -7/Factory O-16 Technician | x1 | -7/Factory Exp. Terrain Scanner | x1 | -5/Factory Imp. Powered Armor | x1 | -5/Factory Plasma Sword | x1 | -5/Factory O-16 Technician | x1 | -4/Factory Adv. Powered Armor | x1 | -3/Research System Restoration Module | x2 | -3/Armory Alien Tech Used ----------------- None Achievements -------------- Reappropriation Challenges ------------ None RPGLIKE | -11 -10 -10 -10 -9 -8 -8 -7 -7 -7 -7 -6 -6 -6 -6 -6 -6 -5 -5 -5 -5 -5 -5 -4 -4 -4 -4 -3 -3 -3 --------- Run | Scr Mat Min Exi Min Mat Sto Fac Low Low Dat Pro Fac Low Low Zio Dee Pro Fac Ext Cet Arc Hub Fac Upp Upp War Pro Res Arm Levels Raised 28 | . 2 . . 1 2 3 5 1 . . 2 2 . . . . 1 2 1 . 1 . 1 . . 1 . 2 1 XP Earned 45521 | 3000 3227 908 260 1024 3245 4060 7591 988 668 316 2705 2143 203 286 220 512 1311 1948 2006 741 234 660 1588 319 203 322 872 2612 1349 XP Spent 43305 | 2390 3600 . . 800 3710 3500 8395 1250 . . 3320 1400 . . . . 2900 3200 1520 . . 1500 . . . 1750 . 4070 . Upgrades 64 | 7 9 . . 1 11 4 10 1 . . 5 1 . . . . 1 1 6 . . 1 . . . 1 . 5 . Power Slot 1 | . . . . . . 1 . . . . . . . . . . . . . . . . . . . . . . . Propulsion Slot 2 | 1 . . . . . . 1 . . . . . . . . . . . . . . . . . . . . . . Utility Slot 11 | 1 2 . . . 1 1 2 . . . 1 . . . . . 1 1 . . . . . . . . . 1 . Weapon Slot 4 | 1 . . . 1 . . 1 . . . . 1 . . . . . . . . . . . . . . . . . Core Integrity 8 | . . . . . 2 . . . . . 1 . . . . . . . 3 . . . . . . . . 2 . Heat Dissipation 3 | . 1 . . . . . 1 . . . . . . . . . . . . . . . . . . . . 1 . Energy Generation 2 | . 1 . . . . . . . . . . . . . . . . . 1 . . . . . . . . . . Mass Support 1 | . 1 . . . . . . . . . . . . . . . . . . . . . . . . . . . . Inventory Capacity 7 | 2 1 . . . 1 . . 1 . . . . . . . . . . . . . 1 . . . 1 . . . Sight Range 1 | . 1 . . . . . . . . . . . . . . . . . . . . . . . . . . . . Sensor Range 11 | . . . . . 4 . 2 . . . 3 . . . . . . . 1 . . . . . . . . 1 . Terrain Scan Density 2 | 2 . . . . . . . . . . . . . . . . . . . . . . . . . . . . . Melee Accuracy 4 | . . . . . 2 . 1 . . . . . . . . . . . 1 . . . . . . . . . . Hack Attack % 4 | . 1 . . . 1 . 2 . . . . . . . . . . . . . . . . . . . . . . Hack Defense % 3 | . 1 . . . . 2 . . . . . . . . . . . . . . . . . . . . . . . Protomatter Created 3810 | . 456 . . 12 138 145 426 143 182 . 153 100 54 54 . 42 73 355 127 107 . 274 284 71 . . 57 173 384 Integrity Restored 8093 | . 807 . . 194 266 499 555 294 440 . 533 453 156 162 . 126 219 554 243 223 . 547 399 213 . 279 75 237 619 Core 5768 | . 598 . . 112 200 339 392 193 416 . 302 453 106 162 . 126 219 412 153 95 . 256 189 213 . 69 44 114 605 Parts 2325 | . 209 . . 82 66 160 163 101 24 . 231 . 50 . . . . 142 90 128 . 291 210 . . 210 31 123 14 Protomatter Decayed 2995 | . 138 99 . 231 42 31 314 103 34 . 47 . . . . . . 165 484 309 . 199 143 . . 444 31 90 91 Game ------ Seed AntimissileReclamationTrap Manual? 0 Play Time 06:37:42 Cumulative 169.0 hours Start 2020.08.31 @ 10:53:41 End 2020.08.31 @ 22:04:53 Sessions 3 Manual Loads 0 Difficulty Rogue Special Mode Winter2019/RPGLIKE Game No. 67 Rogue 67 Adventurer 0 Explorer 0 Win Type - Total 2 Types 1/0/0/1/0/0/0 Lore% 79 Gallery% 73 Achievement% 66 Wizard Run 0 Options --------- ASCII 0 Keyboard 0 Movement Numpad Keybinds 0 Fullscreen 1 Font 18/SmallcapsGlow Map View 76x50 Tactical HUD 1 Map Filters NONE Filters NONE Steam 1 RUN: 582d23d1-b014-4505-975d-ac1504062b5d